[Event "2nd Gujarat Open 2019"]
[Site "Ahmedabad, Gujarat"]
[Date "2019.09.28"]
[Round "9.21"]
[White "Patil, Pratik"]
[Black "Saranya, Y."]
[Result "1/2-1/2"]
[ECO "B35"]
[WhiteElo "2187"]
[BlackElo "1974"]
[Annotator "NA"]
[PlyCount "127"]
[EventDate "2019.09.22"]
[EventType "swiss"]
[EventCountry "IND"]
[SourceTitle "playchess.com"]
[Source "ChessBase"]
[SourceQuality "1"]
[TimeControl "5400+30"]

1. e4 {[%emt 0:00:00]} c5 {[%emt 0:02:39]} 2. Nf3 {[%emt 0:00:00]} Nc6 {[%emt 0:00:05]} 3. d4 {[%emt 0:00:00]} cxd4 {[%emt 0:00:05]} 4. Nxd4 {[%emt 0:00:00]} g6 {[%emt 0:00:17]} 5. Nc3 {[%emt 0:00:17]} Bg7 {[%emt 0:00:05]} 6. Be3 {[%emt 0:00:18]} Nf6 {[%emt 0:00:05]} 7. Bc4 {[%emt 0:00:21]} Qa5 {[%emt 0:00:14]} 8. O-O {[%emt 0:08:38]} O-O {[%emt 0:00:28]} 9. Bb3 {[%emt 0:01:25]} d6 {[%emt 0:00:06]} 10. h3 {[%emt 0:01:53]} Bd7 {[%emt 0:01:40]} 11. Re1 {[%emt 0:09:31]} Rfc8 12. Qd2 {[%emt 0:20:29]} Nxd4 {[%emt 0:35:02]} 13. Bxd4 {[%emt 0:00:55]} Bc6 {[%emt 0:00:43]} 14. e5 {[%emt 0:05:40]} dxe5 {[%emt 0:04:44]} 15. Rxe5 {[%emt 0:02:01]} Qc7 {[%emt 0:03:29]} 16. Rae1 {[%emt 0:03:15]} Re8 {[%emt 0:05:43]} 17. Qe3 {[%emt 0:35:01]} e6 {[%emt 0:05:22]} 18. Rg5 {[%emt 0:01:13]} Nd5 {[%emt 0:15:56]} 19. Qd2 {[%emt 0:00:15]} Bxd4 {[%emt 0:05:15]} 20. Qxd4 {[%emt 0:00:09]} Nxc3 {[%emt 0:00:22]} 21. Qxc3 {[%emt 0:00:05]} Rad8 {[%emt 0:01:37]} 22. h4 {[%emt 0:02:03]} Qf4 {[%emt 0:01:54]} 23. Qg3 {[%emt 0:01:41]} Qf6 {[%emt 0:02:38]} 24. Qe5 {[%emt 0:03:39]} Kg7 {[%emt 0:01:37]} 25. h5 {[%emt 0:01:24]} Qxe5 {[%emt 0:01:14]} 26. Rgxe5 Rd2 {[%emt 0:01:08]} 27. hxg6 {[%emt 0:00:04]} hxg6 {[%emt 0:00:06]} 28. R5e2 {[%emt 0:00:09]} Rd4 {[%emt 0:00:57]} 29. f3 {[%emt 0:00:53]} Red8 {[%emt 0:00:48]} 30. Kf2 {[%emt 0:00:21]} Bb5 {[%emt 0:00:55]} 31. Re5 {[%emt 0:00:02]} a6 {[%emt 0:00:59]} 32. Rc5 {[%emt 0:00:27]} Rd2+ {[%emt 0:00:24]} 33. Kg3 {[%emt 0:00:03]} R8d7 {[%emt 0:01:29]} 34. Rc8 {[%emt 0:00:55]} Bc6 {[%emt 0:01:34]} 35. Re3 {[%emt 0:00:51]} Bb5 {[%emt 0:01:39]} 36. Re1 {[%emt 0:00:41]} Bc6 {[%emt 0:00:04]} 37. Re3 {[%emt 0:00:04]} a5 {[%emt 0:01:34]} 38. a4 {[%emt 0:01:54]} R2d4 {[%emt 0:01:08]} 39. Ra8 {[%emt 0:00:42]} b6 {[%emt 0:02:50]} 40. Rb8 {[%emt 0:00:30]} Rb4 {[%emt 0:00:27]} 41. Rc3 {[%emt 0:00:25]} Rd6 {[%emt 0:00:48]} 42. Kf2 {[%emt 0:01:17]} Bxa4 {[%emt 0:00:54]} 43. Bxa4 {[%emt 0:00:19]} Rxa4 {[%emt 0:00:00]} 44. Rc7 {[%emt 0:00:11]} e5 {[%emt 0:01:26]} 45. Re7 {[%emt 0:00:54]} Rd2+ {[%emt 0:00:40]} 46. Kg3 {[%emt 0:00:47]} Rxc2 {[%emt 0:00:39]} 47. Rxb6 {[%emt 0:00:12]} Rb4 {[%emt 0:00:31]} 48. Rxb4 {[%emt 0:00:06]} axb4 {[%emt 0:00:04]} 49. Rxe5 {[%emt 0:00:04]} Rxb2 {[%emt 0:00:03]} 50. Rb5 {[%emt 0:00:02]} b3 {[%emt 0:01:06]} 51. Rb6 {[%emt 0:00:05]} Rb1 {[%emt 0:00:47]} 52. Kf4 {[%emt 0:00:03]} Kf8 {[%emt 0:00:50]} 53. Rb7 {[%emt 0:00:12]} Ke8 {[%emt 0:00:29]} 54. Kg5 {[%emt 0:00:15]} Rb2 {[%emt 0:00:41]} 55. Kf6 {[%emt 0:01:52]} Rxg2 {[%emt 0:00:24]} 56. Rb8+ {[%emt 0:00:18]} Kd7 {[%emt 0:00:21]} 57. Rxb3 {[%emt 0:00:02]} Kd6 {[%emt 0:00:37]} 58. Rd3+ {[%emt 0:00:19]} Kc5 {[%emt 0:00:09]} 59. Kxf7 {[%emt 0:00:18]} Kc4 {[%emt 0:00:38]} 60. Ra3 {[%emt 0:00:48]} Kd4 {[%emt 0:00:35]} 61. Kf6 {[%emt 0:00:03]} Rg3 {[%emt 0:00:39]} 62. Rb3 {[%emt 0:01:00]} Rg1 {[%emt 0:00:38]} 63. Ra3 {[%emt 0:00:16]} Rg3 {[%emt 0:00:12]} 64. Rb3 {[%emt 0:00:01]} 1/2-1/2

[Event "2nd Gujarat Open 2019"]
[Site "Ahmedabad, Gujarat"]
[Date "2019.09.28"]
[Round "9.22"]
[White "Anusha N L V"]
[Black "Mehdi Hasan Parag"]
[Result "0-1"]
[ECO "A06"]
[WhiteElo "2081"]
[BlackElo "2183"]
[Annotator "NA"]
[PlyCount "94"]
[EventDate "2019.09.22"]
[EventType "swiss"]
[EventCountry "IND"]
[SourceTitle "playchess.com"]
[Source "ChessBase"]
[SourceQuality "1"]
[TimeControl "5400+30"]

1. Nf3 {[%emt 0:03:23]} d5 {[%emt 0:00:00]} 2. c4 {[%emt 0:00:24]} Nf6 {[%emt 0:00:39]} 3. b3 {[%emt 0:01:30]} c6 {[%emt 0:00:23]} 4. g3 {[%emt 0:00:51]} g6 {[%emt 0:00:03]} 5. Bg2 {[%emt 0:01:01]} Bg7 {[%emt 0:00:03]} 6. Bb2 {[%emt 0:00:33]} O-O {[%emt 0:00:08]} 7. O-O {[%emt 0:00:17]} a5 {[%emt 0:00:03]} 8. d3 {[%emt 0:02:30]} a4 {[%emt 0:03:13]} 9. Nbd2 {[%emt 0:06:25]} a3 {[%emt 0:01:12]} 10. Bc3 {[%emt 0:00:06]} Re8 {[%emt 0:02:26]} 11. Qc2 {[%emt 0:02:24]} Nbd7 {[%emt 0:00:35]} 12. d4 {[%emt 0:05:42]} Nb6 {[%emt 0:02:02]} 13. Nh4 {[%emt 0:06:12]} dxc4 {[%emt 0:04:02]} 14. bxc4 {[%emt 0:01:54]} Na4 {[%emt 0:00:42]} 15. Nb3 {[%emt 0:05:34]} Nxc3 {[%emt 0:04:19]} 16. Qxc3 {[%emt 0:00:03]} Qc7 {[%emt 0:02:25]} 17. f4 {[%emt 0:07:07]} Nd7 {[%emt 0:08:46]} 18. Rac1 {[%emt 0:06:19]} c5 {[%emt 0:00:39]} 19. e3 {[%emt 0:02:59]} Ra6 {[%emt 0:01:09]} 20. Qc2 {[%emt 0:04:02]} Re6 {[%emt 0:07:42]} 21. Rfe1 {[%emt 0:02:51]} cxd4 {[%emt 0:00:59]} 22. exd4 {[%emt 0:01:00]} Nf8 {[%emt 0:01:13]} 23. d5 {[%emt 0:10:25]} Rxe1+ {[%emt 0:00:25]} 24. Rxe1 {[%emt 0:00:03]} Nd7 {[%emt 0:00:30]} 25. Nf3 {[%emt 0:07:59]} Nb6 {[%emt 0:04:13]} 26. Nfd2 {[%emt 0:01:24]} Bf5 {[%emt 0:00:52]} 27. Be4 {[%emt 0:00:41]} Bxe4 {[%emt 0:00:25]} 28. Qxe4 {[%emt 0:00:59]} Na4 {[%emt 0:01:01]} 29. Kg2 {[%emt 0:02:55]} Nc3 {[%emt 0:01:15]} 30. Qd3 {[%emt 0:03:17]} Nxa2 {[%emt 0:00:59]} 31. c5 {[%emt 0:01:45]} Rd8 {[%emt 0:01:15]} 32. Nc4 {[%emt 0:03:52]} Nb4 {[%emt 0:01:02]} 33. Qe4 {[%emt 0:00:10]} Nxd5 {[%emt 0:03:14]} 34. Nxa3 {[%emt 0:00:10]} Qc6 {[%emt 0:01:26]} 35. Kg1 {[%emt 0:01:21]} e6 {[%emt 0:00:31]} 36. Nc4 {[%emt 0:02:34]} Qb5 {[%emt 0:01:00]} 37. Qd3 {[%emt 0:01:23]} Bf6 {[%emt 0:04:01]} 38. Ne5 {[%emt 0:01:03]} Qb4 {[%emt 0:01:14]} 39. Re4 {[%emt 0:00:52]} Qa3 {[%emt 0:01:20]} 40. Nc4 {[%emt 0:00:26]} Qa7 {[%emt 0:01:56]} 41. Qf3 {[%emt 0:01:08]} Nc3 {[%emt 0:01:48]} 42. Re1 {[%emt 0:00:25]} Na4 {[%emt 0:01:06]} 43. Kh1 {[%emt 0:01:11]} Nxc5 {[%emt 0:01:10]} 44. Qe3 {[%emt 0:00:08]} b6 {[%emt 0:00:31]} 45. Nxc5 {[%emt 0:00:19]} bxc5 {[%emt 0:00:07]} 46. Ne5 {[%emt 0:00:08]} Qb7+ {[%emt 0:00:26]} 47. Kg1 {[%emt 0:00:06]} Qd5 {[%emt 0:00:31]} 0-1

[Event "2nd Gujarat Open 2019"]
[Site "Ahmedabad, Gujarat"]
[Date "2019.09.28"]
[Round "9.23"]
[White "Katdare, Jayant C"]
[Black "Chokshi, Manthan J."]
[Result "1/2-1/2"]
[ECO "A40"]
[WhiteElo "2046"]
[BlackElo "2170"]
[Annotator "NA"]
[PlyCount "115"]
[EventDate "2019.09.22"]
[EventType "swiss"]
[EventCountry "IND"]
[SourceTitle "playchess.com"]
[Source "ChessBase"]
[SourceQuality "1"]
[TimeControl "5400+30"]

1. d4 {[%emt 0:00:00]} g6 {[%emt 0:00:28]} 2. c4 {[%emt 0:00:07]} Bg7 {[%emt 0:00:14]} 3. Nf3 {[%emt 0:00:24]} c5 {[%emt 0:00:14]} 4. e3 {[%emt 0:01:19]} Na6 {[%emt 0:02:44]} 5. Be2 {[%emt 0:00:49]} Nf6 {[%emt 0:00:09]} 6. Nc3 {[%emt 0:00:52]} O-O {[%emt 0:00:14]} 7. O-O {[%emt 0:00:29]} cxd4 {[%emt 0:05:36]} 8. exd4 {[%emt 0:01:19]} d6 {[%emt 0:21:38]} 9. Bf4 {[%emt 0:07:41]} Bd7 {[%emt 0:10:34]} 10. Qd2 {[%emt 0:02:30]} Re8 {[%emt 0:00:09]} 11. Rfd1 {[%emt 0:04:20]} Rc8 {[%emt 0:05:56]} 12. a3 {[%emt 0:03:06]} Be6 {[%emt 0:09:19]} 13. d5 {[%emt 0:07:43]} Bg4 {[%emt 0:00:21]} 14. Nd4 {[%emt 0:04:56]} Bxe2 {[%emt 0:02:17]} 15. Qxe2 {[%emt 0:00:03]} Nc5 {[%emt 0:02:03]} 16. b4 {[%emt 0:13:30]} Ncd7 {[%emt 0:00:04]} 17. Na4 {[%emt 0:00:48]} Nb6 {[%emt 0:15:29]} 18. Nxb6 {[%emt 0:03:50]} Qxb6 {[%emt 0:00:02]} 19. Be3 {[%emt 0:03:35]} Qc7 {[%emt 0:07:33]} 20. Rac1 {[%emt 0:02:12]} Qd7 {[%emt 0:00:11]} 21. h3 {[%emt 0:12:17]} Qa4 {[%emt 0:02:17]} 22. Nb5 {[%emt 0:12:06]} a6 {[%emt 0:00:27]} 23. Na7 {[%emt 0:00:13]} Ra8 {[%emt 0:01:26]} 24. Qd3 {[%emt 0:01:20]} Nd7 {[%emt 0:00:57]} 25. Rb1 {[%emt 0:00:49]} Ne5 {[%emt 0:00:52]} 26. Qe2 {[%emt 0:00:43]} Qxa3 {[%emt 0:02:23]} 27. b5 {[%emt 0:02:13]} axb5 {[%emt 0:02:45]} 28. Ra1 {[%emt 0:04:06]} Nf3+ {[%emt 0:01:19]} 29. Qxf3 {[%emt 0:00:17]} Bxa1 {[%emt 0:00:04]} 30. Nxb5 {[%emt 0:00:04]} Qa5 {[%emt 0:01:06]} 31. Bd2 {[%emt 0:03:01]} Qd8 {[%emt 0:00:13]} 32. h4 {[%emt 0:00:37]} Bf6 {[%emt 0:00:30]} 33. h5 {[%emt 0:00:13]} Ra1 {[%emt 0:03:27]} 34. Rxa1 {[%emt 0:00:30]} Bxa1 {[%emt 0:00:02]} 35. Bc3 {[%emt 0:02:58]} Bxc3 {[%emt 0:00:57]} 36. Qxc3 {[%emt 0:00:16]} Qd7 {[%emt 0:02:27]} 37. h6 {[%emt 0:00:48]} f6 {[%emt 0:00:00]} 38. Qe3 {[%emt 0:00:28]} Rc8 {[%emt 0:00:39]} 39. Qe4 {[%emt 0:00:22]} Kf7 {[%emt 0:00:37]} 40. g4 {[%emt 0:00:33]} Rc5 {[%emt 0:00:51]} 41. Qe2 {[%emt 0:04:32]} Qc8 {[%emt 0:00:42]} 42. Na7 {[%emt 0:00:26]} Qa8 {[%emt 0:00:44]} 43. Qe6+ {[%emt 0:00:50]} Kf8 44. Qd7 {[%emt 0:01:27]} Qxa7 {[%emt 0:01:00]} 45. Qd8+ {[%emt 0:00:05]} Kf7 {[%emt 0:00:06]} 46. Qh8 {[%emt 0:00:06]} Qa1+ {[%emt 0:00:32]} 47. Kg2 {[%emt 0:00:08]} Rxc4 {[%emt 0:00:50]} 48. Qxh7+ {[%emt 0:00:11]} Ke8 {[%emt 0:00:12]} 49. Qxg6+ {[%emt 0:00:13]} Kd7 {[%emt 0:00:04]} 50. h7 {[%emt 0:01:37]} Qd1 {[%emt 0:01:19]} 51. Qf5+ {[%emt 0:01:48]} Kc7 {[%emt 0:00:01]} 52. h8=Q {[%emt 0:00:29]} Rxg4+ {[%emt 0:00:37]} 53. Kh3 {[%emt 0:00:11]} Qh1+ {[%emt 0:00:15]} 54. Kxg4 {[%emt 0:00:02]} Qh5+ {[%emt 0:00:38] Qhh7 Qxh7 Qd3 Qh8 Qc2+ Kd8 Qb3 Kc7 Qc4+ Kb8 Qb5 Qc8+} 55. Kf4 {[%emt 0:00:38] Kc7} Qe2 {[%emt 0:00:25] Kd8} 56. f3 {[%emt 0:00:04] Qc1+ Ke4 Qb1+ Kf4 Qb4+ Kf5 Qd4} Qb5 {[%emt 0:00:00] Qe3 Qxb7 Qxf3+ Ke6 Qh3+ Kf7 Qh5+ Ke6} 57. Qg4 {[%emt 0:00:00] Kf7} Qd7 {[%emt 0:01:49]} 58. Qa8 {[%emt 0:00:00] Kc7 Qa7+ Kc8 Qa8+ Kc7 Qa7+} 1/2-1/2

[Event "2nd Gujarat Open 2019"]
[Site "Ahmedabad, Gujarat"]
[Date "2019.09.28"]
[Round "9.24"]
[White "Sri Sai Baswanth P"]
[Black "Joshi, Govind Ballabh"]
[Result "1/2-1/2"]
[ECO "A37"]
[WhiteElo "2013"]
[BlackElo "2118"]
[Annotator "NA"]
[PlyCount "88"]
[EventDate "2019.09.22"]
[EventType "swiss"]
[EventCountry "IND"]
[SourceTitle "playchess.com"]
[Source "ChessBase"]
[SourceQuality "1"]
[TimeControl "5400+30"]

1. c4 c5 2. g3 Nc6 3. Bg2 g6 4. Nc3 Bg7 5. Nf3 e5 6. d3 Nge7 7. O-O O-O 8. Ne1 d6 9. Nc2 Be6 10. Ne3 Rb8 11. Ned5 h6 12. Bd2 a6 13. a4 a5 14. Nb5 Nb4 15. Bxb4 axb4 16. Ndc7 Bd7 17. a5 Rc8 18. Nd5 Nxd5 19. Bxd5 Bc6 20. a6 Bxd5 21. cxd5 Qb6 22. axb7 Rb8 23. Na7 e4 24. Qb3 exd3 25. exd3 Qxb7 26. Nc6 Ra8 27. Na5 Qa6 28. Ra4 Rfe8 29. Rfa1 Qc8 30. Nc4 Rxa4 31. Qxa4 Re2 32. Qa8 Qxa8 33. Rxa8+ Kh7 34. Kf1 Rc2 35. Nxd6 Bxb2 36. Nc4 Bf6 37. Rb8 Rc3 38. Ke2 b3 39. Ne3 c4 40. dxc4 b2 41. Nd1 Rxc4 42. Kd3 Rd4+ 43. Ke2 Rc4 44. Kd3 Rd4+ 1/2-1/2

[Event "2nd Gujarat Open 2019"]
[Site "Ahmedabad, Gujarat"]
[Date "2019.09.28"]
[Round "9.25"]
[White "Bhatt, Jalpan"]
[Black "Kiran, Manisha Mohanty"]
[Result "0-1"]
[ECO "A48"]
[WhiteElo "2001"]
[BlackElo "2102"]
[Annotator "NA"]
[PlyCount "116"]
[EventDate "2019.09.22"]
[EventType "swiss"]
[EventCountry "IND"]
[SourceTitle "playchess.com"]
[Source "ChessBase"]
[SourceQuality "1"]
[TimeControl "5400+30"]

1. d4 {[%emt 0:00:00]} Nf6 {[%emt 0:00:27]} 2. Nf3 {[%emt 0:00:22]} g6 {[%emt 0:00:06]} 3. c4 {[%emt 0:00:04]} Bg7 {[%emt 0:00:04]} 4. Nc3 {[%emt 0:00:28]} d5 {[%emt 0:00:41]} 5. h4 {[%emt 0:00:12]} dxc4 {[%emt 0:06:39]} 6. e4 {[%emt 0:00:14]} c5 {[%emt 0:00:28]} 7. d5 {[%emt 0:00:05]} Bg4 {[%emt 0:00:30]} 8. Bxc4 {[%emt 0:11:46]} Nbd7 {[%emt 0:08:10]} 9. Qb3 {[%emt 0:06:32]} Nb6 {[%emt 0:15:18]} 10. e5 {[%emt 0:07:38]} Nfd7 {[%emt 0:01:06]} 11. e6 {[%emt 0:00:21]} fxe6 {[%emt 0:01:01]} 12. dxe6 {[%emt 0:00:29]} Nb8 {[%emt 0:02:06]} 13. Be3 {[%emt 0:17:51]} Nc6 {[%emt 0:03:44]} 14. Bxc5 {[%emt 0:07:06]} O-O {[%emt 0:01:19]} 15. Rd1 {[%emt 0:06:51]} Qc8 {[%emt 0:04:21]} 16. Bxb6 {[%emt 0:07:48]} axb6 {[%emt 0:00:45]} 17. Nd5 {[%emt 0:00:35]} b5 {[%emt 0:03:05]} 18. Qxb5 {[%emt 0:03:54]} Qb8 {[%emt 0:00:09]} 19. Rd3 {[%emt 0:07:47]} Bxf3 {[%emt 0:06:34]} 20. Rxf3 {[%emt 0:01:22]} Rxf3 {[%emt 0:00:48]} 21. gxf3 {[%emt 0:00:33]} Qe5+ {[%emt 0:03:01]} 22. Ne3 {[%emt 0:00:26]} Qxb5 {[%emt 0:00:42]} 23. Bxb5 {[%emt 0:00:05]} Rxa2 {[%emt 0:00:06]} 24. Bxc6 {[%emt 0:11:01]} Ra1+ {[%emt 0:01:58]} 25. Nd1 {[%emt 0:00:30]} bxc6 {[%emt 0:00:05]} 26. h5 {[%emt 0:00:18]} Bxb2 {[%emt 0:01:14]} 27. hxg6 {[%emt 0:00:06]} hxg6 {[%emt 0:00:05]} 28. Rg1 {[%emt 0:02:35]} Kg7 {[%emt 0:00:58]} 29. Rg5 {[%emt 0:01:58]} Bd4 {[%emt 0:00:24]} 30. Rg4 {[%emt 0:03:09]} c5 {[%emt 0:00:45]} 31. Ke2 {[%emt 0:00:01]} Ra2+ {[%emt 0:01:45]} 32. Kd3 {[%emt 0:00:02]} Kf6 {[%emt 0:00:43]} 33. Ne3 {[%emt 0:02:26]} Ra3+ {[%emt 0:05:01]} 34. Kd2 {[%emt 0:00:01]} Kxe6 {[%emt 0:00:52]} 35. Rxg6+ {[%emt 0:00:09]} Kd7 {[%emt 0:00:26]} 36. f4 {[%emt 0:02:34]} Ra2+ {[%emt 0:00:36]} 37. Ke1 {[%emt 0:00:35]} Ra4 {[%emt 0:00:29]} 38. Ke2 {[%emt 0:00:29]} c4 {[%emt 0:03:15]} 39. Rg1 {[%emt 0:00:02]} Kc6 {[%emt 0:01:55]} 40. Rg6+ {[%emt 0:00:36]} Kb5 {[%emt 0:01:47]} 41. Re6 {[%emt 0:00:25]} Ra2+ {[%emt 0:00:31]} 42. Kf3 {[%emt 0:00:24]} Bc5 {[%emt 0:00:40]} 43. Nd1 {[%emt 0:01:01]} Kb4 {[%emt 0:01:18]} 44. Rc6 {[%emt 0:00:29]} Rd2 {[%emt 0:02:02]} 45. Ne3 {[%emt 0:00:19]} c3 {[%emt 0:00:11]} 46. f5 {[%emt 0:00:16]} c2 {[%emt 0:00:10]} 47. Nxc2+ {[%emt 0:00:17]} Rxc2 {[%emt 0:00:06]} 48. Ke4 {[%emt 0:00:56]} Rxf2 {[%emt 0:00:59]} 49. Ke5 {[%emt 0:00:06]} Kb5 {[%emt 0:01:10]} 50. Re6 {[%emt 0:01:06]} Kc4 {[%emt 0:02:28]} 51. Rc6 {[%emt 0:00:27]} Re2+ {[%emt 0:00:17]} 52. Kf4 {[%emt 0:00:02]} Kd5 {[%emt 0:00:11]} 53. Ra6 {[%emt 0:00:20]} Rf2+ {[%emt 0:01:12]} 54. Kg5 {[%emt 0:00:04]} Rg2+ {[%emt 0:00:09]} 55. Kf4 {[%emt 0:01:08]} Bd6+ {[%emt 0:00:08]} 56. Kf3 {[%emt 0:00:04]} Rg3+ {[%emt 0:00:09]} 57. Kf2 {[%emt 0:00:05]} Rg5 {[%emt 0:00:06]} 58. f6 {[%emt 0:00:40]} Rf5+ {[%emt 0:00:22]} 0-1

[Event "2nd Gujarat Open 2019"]
[Site "Ahmedabad, Gujarat"]
[Date "2019.09.28"]
[Round "9.26"]
[White "Thanki, Hemal Karsanji"]
[Black "Samal Ansuman"]
[Result "1-0"]
[ECO "E99"]
[WhiteElo "2098"]
[BlackElo "1847"]
[Annotator "NA"]
[PlyCount "57"]
[EventDate "2019.09.22"]
[EventType "swiss"]
[EventCountry "IND"]
[SourceTitle "playchess.com"]
[Source "ChessBase"]
[SourceQuality "1"]
[TimeControl "5400+30"]

1. d4 {[%emt 0:00:00]} Nf6 {[%emt 0:00:49]} 2. c4 {[%emt 0:00:00]} g6 {[%emt 0:00:08]} 3. Nc3 {[%emt 0:00:00]} Bg7 {[%emt 0:00:05]} 4. e4 {[%emt 0:00:00]} O-O {[%emt 0:00:05]} 5. Nf3 {[%emt 0:00:00]} d6 {[%emt 0:00:05]} 6. Be2 {[%emt 0:00:00]} e5 {[%emt 0:00:13]} 7. O-O {[%emt 0:00:00]} Nc6 {[%emt 0:00:03]} 8. d5 {[%emt 0:00:02]} Ne7 {[%emt 0:00:05]} 9. Ne1 {[%emt 0:00:05]} Nd7 {[%emt 0:02:11]} 10. f3 {[%emt 0:00:06]} f5 {[%emt 0:00:06]} 11. Be3 {[%emt 0:00:05]} f4 {[%emt 0:02:29]} 12. Bf2 {[%emt 0:00:02]} g5 {[%emt 0:00:08]} 13. Rc1 {[%emt 0:00:15]} Rf6 {[%emt 0:01:48]} 14. Nd3 {[%emt 0:00:28]} Rh6 {[%emt 0:02:01]} 15. c5 {[%emt 0:00:20]} Qe8 {[%emt 0:02:05]} 16. Nb5 {[%emt 0:00:25]} Qh5 {[%emt 0:09:39]} 17. h4 {[%emt 0:00:04]} Ng6 {[%emt 0:16:06]} 18. g4 {[%emt 0:00:39]} fxg3 {[%emt 0:00:53]} 19. Bxg3 {[%emt 0:00:09]} Nf4 {[%emt 0:15:42]} 20. Nxc7 {[%emt 0:13:23]} Rg6 {[%emt 0:42:34]} 21. Kh1 {[%emt 0:06:20]} Nf6 {[%emt 0:02:41]} 22. Nxa8 {[%emt 0:16:07]} Nxe4 {[%emt 0:00:29]} 23. Be1 {[%emt 0:04:20]} Bh3 24. Nxf4 {[%emt 0:04:05]} gxf4 {[%emt 0:01:00]} 25. fxe4 {[%emt 0:00:21]} Bg2+ {[%emt 0:00:32]} 26. Kh2 {[%emt 0:00:17]} f3 {[%emt 0:00:31]} 27. Bxf3 {[%emt 0:00:49]} Bxf3 {[%emt 0:00:25]} 28. Qxf3 {[%emt 0:00:23]} Rg4 {[%emt 0:00:29]} 29. cxd6 {[%emt 0:03:00]} 1-0

[Event "2nd Gujarat Open 2019"]
[Site "Ahmedabad, Gujarat"]
[Date "2019.09.28"]
[Round "9.27"]
[White "Kadam Om Manish"]
[Black "Jay Kundaliya"]
[Result "1-0"]
[ECO "B91"]
[WhiteElo "1930"]
[BlackElo "2097"]
[Annotator "NA"]
[PlyCount "91"]
[EventDate "2019.09.22"]
[EventType "swiss"]
[EventCountry "IND"]
[SourceTitle "playchess.com"]
[Source "ChessBase"]
[SourceQuality "1"]
[TimeControl "5400+30"]

1. e4 {[%emt 0:00:00]} c5 {[%emt 0:00:00]} 2. Nf3 {[%emt 0:00:00]} d6 {[%emt 0:00:11]} 3. d4 {[%emt 0:00:00]} cxd4 {[%emt 0:00:07]} 4. Nxd4 {[%emt 0:00:00]} Nf6 {[%emt 0:00:07]} 5. Nc3 {[%emt 0:00:00]} a6 {[%emt 0:00:04]} 6. g3 {[%emt 0:00:05]} e5 {[%emt 0:05:08]} 7. Nde2 {[%emt 0:00:05]} Be7 {[%emt 0:01:02]} 8. Bg2 {[%emt 0:00:05]} Be6 {[%emt 0:09:57]} 9. O-O {[%emt 0:00:20]} h5 {[%emt 0:08:20]} 10. h3 {[%emt 0:02:01]} Qc8 {[%emt 0:04:19]} 11. Kh2 {[%emt 0:01:16]} Nbd7 {[%emt 0:05:23]} 12. a4 {[%emt 0:01:22]} g6 {[%emt 0:05:30]} 13. Be3 {[%emt 0:03:29]} Kf8 14. f4 {[%emt 0:03:33]} h4 {[%emt 0:16:48]} 15. f5 {[%emt 0:00:15]} hxg3+ {[%emt 0:00:09]} 16. Nxg3 {[%emt 0:00:06]} Bc4 {[%emt 0:00:06]} 17. Rf2 {[%emt 0:00:22]} Kg7 {[%emt 0:00:51]} 18. Qf3 {[%emt 0:02:05]} d5 {[%emt 0:15:48]} 19. exd5 {[%emt 0:05:25]} e4 {[%emt 0:11:48]} 20. Qf4 {[%emt 0:00:21]} Qb8 {[%emt 0:04:23]} 21. Qxb8 {[%emt 0:01:54]} Raxb8 {[%emt 0:00:01]} 22. Kg1 {[%emt 0:04:44]} Nxd5 {[%emt 0:04:38]} 23. Bd4+ {[%emt 0:01:58]} Bf6 {[%emt 0:00:53]} 24. Bxf6+ {[%emt 0:00:25]} N5xf6 {[%emt 0:01:34]} 25. b3 {[%emt 0:01:12]} Bd5 {[%emt 0:01:37]} 26. fxg6 {[%emt 0:01:16]} fxg6 {[%emt 0:01:29]} 27. Nxd5 {[%emt 0:00:10]} Nxd5 {[%emt 0:00:01]} 28. Bxe4 {[%emt 0:00:11]} N7f6 {[%emt 0:00:41]} 29. Bg2 {[%emt 0:02:02]} Ne3 {[%emt 0:00:30]} 30. Re1 {[%emt 0:00:05]} Rhe8 {[%emt 0:01:10]} 31. Rxf6 {[%emt 0:02:00]} Kxf6 {[%emt 0:00:33]} 32. Ne4+ {[%emt 0:00:03]} Rxe4 {[%emt 0:00:01]} 33. Bxe4 {[%emt 0:00:05]} Nf5 {[%emt 0:00:15]} 34. Kf2 {[%emt 0:04:06]} a5 {[%emt 0:00:24]} 35. Bd5 {[%emt 0:00:30]} b5 {[%emt 0:00:42]} 36. Re6+ {[%emt 0:01:02]} Kg5 {[%emt 0:02:16]} 37. b4 {[%emt 0:03:47]} bxa4 {[%emt 0:00:47]} 38. bxa5 {[%emt 0:00:04]} Rb5 {[%emt 0:00:17]} 39. Ba2 {[%emt 0:05:51]} Rb2 {[%emt 0:00:48]} 40. a6 {[%emt 0:00:38]} Rxa2 {[%emt 0:00:03]} 41. Rc6 {[%emt 0:00:05]} Rb2 {[%emt 0:01:17]} 42. a7 {[%emt 0:00:43]} a3 {[%emt 0:00:01]} 43. a8=Q a2 {[%emt 0:00:08]} 44. Qd8+ {[%emt 0:00:30]} Kf4 {[%emt 0:00:19]} 45. Rc4+ {[%emt 0:00:05]} Ke5 {[%emt 0:00:13]} 46. Qh8+ {[%emt 0:00:03]} 1-0

[Event "2nd Gujarat Open 2019"]
[Site "Ahmedabad, Gujarat"]
[Date "2019.09.28"]
[Round "9.28"]
[White "Souhardo Basak"]
[Black "Kanishk S K"]
[Result "1/2-1/2"]
[ECO "B90"]
[WhiteElo "2301"]
[BlackElo "2001"]
[Annotator "NA"]
[PlyCount "94"]
[EventDate "2019.09.22"]
[EventType "swiss"]
[EventCountry "IND"]
[SourceTitle "playchess.com"]
[Source "ChessBase"]
[SourceQuality "1"]
[TimeControl "5400+30"]

1. e4 {[%emt 0:00:00]} c5 {[%emt 0:00:54]} 2. Nf3 {[%emt 0:00:00]} d6 {[%emt 0:00:09]} 3. d4 {[%emt 0:00:00]} cxd4 {[%emt 0:00:09]} 4. Nxd4 {[%emt 0:00:00]} Nf6 {[%emt 0:00:31]} 5. Nc3 {[%emt 0:00:00]} a6 {[%emt 0:00:08]} 6. Be3 {[%emt 0:00:11]} e5 {[%emt 0:00:17]} 7. Nb3 {[%emt 0:00:05]} Be6 {[%emt 0:00:21]} 8. Be2 {[%emt 0:00:06]} Be7 {[%emt 0:00:26]} 9. O-O {[%emt 0:00:06]} O-O {[%emt 0:00:37]} 10. f4 {[%emt 0:00:12]} exf4 {[%emt 0:01:21]} 11. Bxf4 {[%emt 0:00:02]} Nc6 {[%emt 0:00:40]} 12. Qe1 {[%emt 0:01:54]} b5 {[%emt 0:04:45]} 13. Rd1 {[%emt 0:12:11]} b4 {[%emt 0:13:46]} 14. Nd5 {[%emt 0:00:02]} Nxe4 {[%emt 0:12:10]} 15. Nxe7+ {[%emt 0:00:41]} Qxe7 {[%emt 0:00:06]} 16. Bf3 {[%emt 0:00:15]} Bf5 {[%emt 0:00:13]} 17. Bxd6 {[%emt 0:12:40]} Qa7+ {[%emt 0:00:43]} 18. Kh1 {[%emt 0:00:07]} Rfe8 {[%emt 0:01:26]} 19. Qh4 {[%emt 0:11:46]} g5 {[%emt 0:02:01]} 20. Qh5 {[%emt 0:03:00]} Bg6 {[%emt 0:04:37]} 21. Qh6 {[%emt 0:01:41]} Nf2+ {[%emt 0:05:26]} 22. Rxf2 {[%emt 0:00:07]} Qxf2 {[%emt 0:00:05]} 23. Bg3 {[%emt 0:00:17]} Qb6 {[%emt 0:00:07]} 24. h4 {[%emt 0:01:08]} gxh4 {[%emt 0:23:25]} 25. Bxh4 {[%emt 0:00:02]} Rad8 {[%emt 0:02:09]} 26. Bxd8 {[%emt 0:07:36]} Rxd8 {[%emt 0:00:15]} 27. Rxd8+ {[%emt 0:07:49]} Nxd8 {[%emt 0:00:41]} 28. Qd2 {[%emt 0:01:22]} Ne6 {[%emt 0:01:03]} 29. c4 {[%emt 0:02:22]} bxc3 {[%emt 0:01:22]} 30. Qxc3 {[%emt 0:01:39]} Qf2 {[%emt 0:02:51]} 31. Qd2 {[%emt 0:02:26]} Qg3 {[%emt 0:04:38]} 32. Bb7 {[%emt 0:03:54]} Qh4+ {[%emt 0:14:44]} 33. Kg1 {[%emt 0:00:09]} Qa4 {[%emt 0:00:49]} 34. Qa5 Qf4 {[%emt 0:00:19]} 35. Qc3 {[%emt 0:02:35]} Qd6 {[%emt 0:02:16]} 36. Qc6 {[%emt 0:01:38]} Qd1+ {[%emt 0:00:22]} 37. Kf2 {[%emt 0:00:20]} a5 {[%emt 0:00:47]} 38. Qc8+ {[%emt 0:00:12]} Kg7 {[%emt 0:00:04]} 39. Qc3+ {[%emt 0:00:07]} Kg8 {[%emt 0:00:08]} 40. Nxa5 {[%emt 0:01:09]} Qd6 {[%emt 0:01:54]} 41. Nc4 {[%emt 0:03:24]} Qf4+ {[%emt 0:00:38]} 42. Kg1 {[%emt 0:01:49]} Nc5 {[%emt 0:00:38]} 43. Bf3 {[%emt 0:00:59]} Nd3 {[%emt 0:00:23]} 44. a4 {[%emt 0:01:01]} Qh4 {[%emt 0:00:32]} 45. Nd2 {[%emt 0:13:20]} Qf2+ {[%emt 0:00:06]} 46. Kh2 {[%emt 0:00:03]} Qh4+ {[%emt 0:00:07]} 47. Kg1 {[%emt 0:00:03]} Qf2+ {[%emt 0:00:12]} 1/2-1/2